[Event "*** Titled Tuesday Blitz"]
[Site "Chess.com"]
[Date "2020.12.01"]
[Round "5"]
[White "MarceloPlaya"]
[Black "sokidze"]
[Result "0-1"]
[WhiteElo "2265"]
[BlackElo "2494"]
[TimeControl "180+1"]
[EndTime "10:51:48 PST"]
[Termination "sokidze won by resignation"]

1. e4 {[%clk 0:02:57.7]} 1... c5 {[%clk 0:03:00.1]} 2. Nf3 {[%clk 0:02:56.2]}
2... Nc6 {[%clk 0:03:00.4]} 3. d4 {[%clk 0:02:54.7]} 3... cxd4 {[%clk
0:03:01.3]} 4. Nxd4 {[%clk 0:02:54]} 4... g6 {[%clk 0:03:01.7]} 5. Nc3 {[%clk
0:02:52.7]} 5... Bg7 {[%clk 0:03:01.7]} 6. Be3 {[%clk 0:02:52.5]} 6... Nf6
{[%clk 0:03:02.2]} 7. Bc4 {[%clk 0:02:46.4]} 7... O-O {[%clk 0:03:01.9]} 8. Bb3
{[%clk 0:02:44]} 8... Re8 {[%clk 0:03:00.9]} 9. f3 {[%clk 0:02:39.7]} 9... d5
{[%clk 0:02:58.9]} 10. exd5 {[%clk 0:02:38.1]} 10... Nb4 {[%clk 0:02:59]} 11.
Qd2 {[%clk 0:02:34.4]} 11... Nbxd5 {[%clk 0:02:55.8]} 12. Nxd5 {[%clk 0:02:33]}
12... Nxd5 {[%clk 0:02:56.7]} 13. Bf2 {[%clk 0:02:26]} 13... a6 {[%clk
0:01:49.9]} 14. O-O-O {[%clk 0:02:19.7]} 14... Nf6 {[%clk 0:01:43.8]} 15. Kb1
{[%clk 0:02:16.4]} 15... e5 {[%clk 0:01:42.5]} 16. Ne2 {[%clk 0:02:12.3]} 16...
Qe7 {[%clk 0:01:39.7]} 17. Qc3 {[%clk 0:01:45.1]} 17... Be6 {[%clk 0:01:32]} 18.
Qxe5 {[%clk 0:01:28.3]} 18... Bxb3 {[%clk 0:01:30.3]} 19. Qxe7 {[%clk
0:01:27.3]} 19... Rxe7 {[%clk 0:01:31.2]} 20. Bc5 {[%clk 0:01:15.5]} 20... Bxc2+
{[%clk 0:01:29.3]} 0-1

[Event "*** Titled Tuesday Blitz"]
[Site "Chess.com"]
[Date "2020.12.01"]
[Round "5"]
[White "AldokhinIvan"]
[Black "oezs95"]
[Result "1-0"]
[WhiteElo "2494"]
[BlackElo "2320"]
[TimeControl "180+1"]
[EndTime "10:52:04 PST"]
[Termination "AldokhinIvan won on time"]

1. e4 {[%clk 0:02:52.4]} 1... c5 {[%clk 0:02:59.8]} 2. Nf3 {[%clk 0:02:50.2]}
2... e6 {[%clk 0:03:00.3]} 3. d4 {[%clk 0:02:50.5]} 3... cxd4 {[%clk 0:03:01.2]}
4. Nxd4 {[%clk 0:02:51.2]} 4... a6 {[%clk 0:03:01.9]} 5. Nc3 {[%clk 0:02:50.6]}
5... Qc7 {[%clk 0:03:02.1]} 6. Bd3 {[%clk 0:02:51]} 6... Nf6 {[%clk 0:03:01.8]}
7. Qe2 {[%clk 0:02:51.5]} 7... Bd6 {[%clk 0:02:57.6]} 8. Bd2 {[%clk 0:02:39.4]}
8... Nc6 {[%clk 0:02:48.1]} 9. Nxc6 {[%clk 0:02:38.8]} 9... dxc6 {[%clk
0:02:49]} 10. h3 {[%clk 0:02:36.2]} 10... e5 {[%clk 0:02:46.8]} 11. a4 {[%clk
0:02:26.6]} 11... O-O {[%clk 0:02:42.3]} 12. O-O {[%clk 0:02:24.6]} 12... Be6
{[%clk 0:02:42.3]} 13. a5 {[%clk 0:02:24.8]} 13... Bc5 {[%clk 0:02:30.5]} 14.
Na4 {[%clk 0:02:22.6]} 14... Bd4 {[%clk 0:02:29]} 15. c3 {[%clk 0:02:22.2]}
15... Ba7 {[%clk 0:02:27]} 16. Be3 {[%clk 0:02:21.8]} 16... Bxe3 {[%clk
0:02:27]} 17. Qxe3 {[%clk 0:02:22.2]} 17... Qxa5 {[%clk 0:02:27.5]} 18. Nb6
{[%clk 0:02:10.1]} 1-0

[Event "*** Titled Tuesday Blitz"]
[Site "Chess.com"]
[Date "2020.12.01"]
[Round "5"]
[White "kinga2008"]
[Black "Dreamer_01"]
[Result "0-1"]
[WhiteElo "2169"]
[BlackElo "2375"]
[TimeControl "180+1"]
[EndTime "10:52:05 PST"]
[Termination "Dreamer_01 won by resignation"]

1. e4 {[%clk 0:03:00.7]} 1... c6 {[%clk 0:02:56.6]} 2. d4 {[%clk 0:03:00.3]}
2... d6 {[%clk 0:02:56.8]} 3. e5 {[%clk 0:03:01.2]} 3... dxe5 {[%clk 0:02:56.4]}
4. dxe5 {[%clk 0:03:00.4]} 4... Qa5+ {[%clk 0:02:55.8]} 5. Nc3 {[%clk
0:02:57.9]} 5... Qxe5+ {[%clk 0:02:55.4]} 6. Be3 {[%clk 0:02:56.1]} 6... Nf6
{[%clk 0:02:54.2]} 7. Nf3 {[%clk 0:02:54.2]} 7... Qc7 {[%clk 0:02:54]} 8. Bc4
{[%clk 0:02:50.2]} 8... e6 {[%clk 0:02:52.9]} 9. O-O {[%clk 0:02:42.3]} 9... Be7
{[%clk 0:02:52.6]} 10. Qd2 {[%clk 0:02:25.2]} 10... O-O {[%clk 0:02:48.4]} 11.
Bd3 {[%clk 0:02:23.1]} 11... Nbd7 {[%clk 0:02:44.8]} 12. Ne4 {[%clk 0:02:21.7]}
12... Nxe4 {[%clk 0:02:41.7]} 13. Bxe4 {[%clk 0:02:20.9]} 13... Nf6 {[%clk
0:02:41.7]} 14. Bd3 {[%clk 0:02:20.4]} 14... e5 {[%clk 0:02:38.7]} 15. Ng5
{[%clk 0:02:16.1]} 15... h6 {[%clk 0:02:37.6]} 16. Ne4 {[%clk 0:02:14.2]} 16...
Nxe4 {[%clk 0:02:36.8]} 17. Bxe4 {[%clk 0:02:13.9]} 17... f5 {[%clk 0:02:32.5]}
18. Bd3 {[%clk 0:02:12.6]} 18... f4 {[%clk 0:02:31.3]} 19. Bc4+ {[%clk
0:02:09.2]} 19... Kh8 {[%clk 0:02:30.6]} 20. Bxf4 {[%clk 0:02:09.6]} 20... exf4
{[%clk 0:02:29.1]} 21. Rae1 {[%clk 0:02:08.7]} 21... Bf5 {[%clk 0:02:26.9]} 22.
Bd3 {[%clk 0:02:08.3]} 22... Bxd3 {[%clk 0:02:26.3]} 23. Qxd3 {[%clk 0:02:09.2]}
23... f3 {[%clk 0:02:16.9]} 24. g3 {[%clk 0:02:03.5]} 24... Bc5 {[%clk
0:02:15.1]} 25. Qg6 {[%clk 0:02:01.1]} 25... Qf7 {[%clk 0:02:12.7]} 26. Qe4
{[%clk 0:01:53.8]} 26... Qf5 {[%clk 0:02:09.3]} 27. Qxf5 {[%clk 0:01:50.3]}
27... Rxf5 {[%clk 0:02:07.6]} 28. c3 {[%clk 0:01:48.5]} 28... Rff8 {[%clk
0:02:05.2]} 29. b4 {[%clk 0:01:47.1]} 29... Bb6 {[%clk 0:02:04]} 30. Re6 {[%clk
0:01:48]} 30... Rad8 {[%clk 0:01:59]} 31. a4 {[%clk 0:01:44.9]} 31... Rfe8
{[%clk 0:01:56.7]} 32. Rg6 {[%clk 0:01:43.1]} 32... Rd2 {[%clk 0:01:49.8]} 33.
c4 {[%clk 0:01:37.5]} 33... Bxf2+ {[%clk 0:01:43.5]} 34. Kh1 {[%clk 0:01:32.1]}
34... Re1 {[%clk 0:01:40.9]} 0-1

[Event "*** Titled Tuesday Blitz"]
[Site "Chess.com"]
[Date "2020.12.01"]
[Round "5"]
[White "pavelalexandru07"]
[Black "KonstantinB_1983"]
[Result "0-1"]
[WhiteElo "2350"]
[BlackElo "2522"]
[TimeControl "180+1"]
[EndTime "10:52:07 PST"]
[Termination "KonstantinB_1983 won by resignation"]

1. e4 {[%clk 0:02:29.5]} 1... c6 {[%clk 0:02:58.8]} 2. d4 {[%clk 0:02:29.3]}
2... d5 {[%clk 0:02:59.2]} 3. e5 {[%clk 0:02:29.2]} 3... Bf5 {[%clk 0:02:58.3]}
4. Nf3 {[%clk 0:02:29.8]} 4... e6 {[%clk 0:02:57.4]} 5. Be2 {[%clk 0:02:30]}
5... Nd7 {[%clk 0:02:55.2]} 6. O-O {[%clk 0:02:30.1]} 6... Bg6 {[%clk
0:02:53.7]} 7. Nbd2 {[%clk 0:02:30]} 7... Nh6 {[%clk 0:02:52.8]} 8. Nb3 {[%clk
0:02:24.3]} 8... Be7 {[%clk 0:02:51.8]} 9. Bxh6 {[%clk 0:02:16.1]} 9... gxh6
{[%clk 0:02:50.6]} 10. Qd2 {[%clk 0:02:17]} 10... h5 {[%clk 0:02:44.2]} 11. Qh6
{[%clk 0:02:14.4]} 11... Bf8 {[%clk 0:02:42.8]} 12. Qf4 {[%clk 0:02:13.7]} 12...
Bxc2 {[%clk 0:02:33.3]} 13. Ng5 {[%clk 0:01:22.1]} 13... Bg6 {[%clk 0:02:26.1]}
14. Bd3 {[%clk 0:01:21.4]} 14... Qe7 {[%clk 0:02:17.7]} 15. Bxg6 {[%clk
0:01:15.2]} 15... hxg6 {[%clk 0:02:16.6]} 16. Na5 {[%clk 0:01:06.4]} 16... Rb8
{[%clk 0:02:11.4]} 17. Rac1 {[%clk 0:01:02.4]} 17... h4 {[%clk 0:01:59.9]} 18.
Rxc6 {[%clk 0:00:56.8]} 18... Bh6 {[%clk 0:01:58.7]} 19. Rfc1 {[%clk 0:00:33.3]}
19... O-O {[%clk 0:01:44.2]} 0-1

[Event "*** Titled Tuesday Blitz"]
[Site "Chess.com"]
[Date "2020.12.01"]
[Round "5"]
[White "GigaQuparadze"]
[Black "Nikolaj_6"]
[Result "1-0"]
[WhiteElo "2906"]
[BlackElo "2624"]
[TimeControl "180+1"]
[EndTime "10:52:12 PST"]
[Termination "GigaQuparadze won by resignation"]

1. e4 {[%clk 0:03:00.9]} 1... c5 {[%clk 0:02:59.6]} 2. Ne2 {[%clk 0:03:00.5]}
2... Nf6 {[%clk 0:02:58]} 3. Nbc3 {[%clk 0:02:59.7]} 3... d6 {[%clk 0:02:57.8]}
4. d4 {[%clk 0:02:59.5]} 4... cxd4 {[%clk 0:02:57.4]} 5. Nxd4 {[%clk 0:03:00.4]}
5... a6 {[%clk 0:02:57.8]} 6. h3 {[%clk 0:02:59]} 6... e5 {[%clk 0:02:57.4]} 7.
Nde2 {[%clk 0:02:58.6]} 7... h5 {[%clk 0:02:56.7]} 8. g3 {[%clk 0:02:58.6]} 8...
Be7 {[%clk 0:02:54.7]} 9. Bg2 {[%clk 0:02:59]} 9... Nbd7 {[%clk 0:02:51.2]} 10.
O-O {[%clk 0:02:58.8]} 10... b5 {[%clk 0:02:47.7]} 11. a4 {[%clk 0:02:57.5]}
11... b4 {[%clk 0:02:47.4]} 12. Nd5 {[%clk 0:02:57.5]} 12... Nxd5 {[%clk
0:02:46.3]} 13. Qxd5 {[%clk 0:02:58.4]} 13... Rb8 {[%clk 0:02:43]} 14. Be3
{[%clk 0:02:58.4]} 14... h4 {[%clk 0:02:34.1]} 15. g4 {[%clk 0:02:58]} 15... O-O
{[%clk 0:02:29.1]} 16. f4 {[%clk 0:02:48.7]} 16... Bb7 {[%clk 0:02:23.8]} 17.
Qd3 {[%clk 0:02:48.3]} 17... exf4 {[%clk 0:02:21.5]} 18. Nxf4 {[%clk 0:02:47.5]}
18... Ne5 {[%clk 0:02:19.4]} 19. Qe2 {[%clk 0:02:47.4]} 19... Bg5 {[%clk
0:02:14]} 20. Rad1 {[%clk 0:02:46.1]} 20... Qc7 {[%clk 0:02:13]} 21. Kh1 {[%clk
0:02:44.3]} 21... Bxf4 {[%clk 0:02:00.2]} 22. Bxf4 {[%clk 0:02:45.2]} 22... Rbc8
{[%clk 0:01:56.3]} 23. Rd4 {[%clk 0:02:38.9]} 23... a5 {[%clk 0:01:55.5]} 24.
Rf2 {[%clk 0:02:37.4]} 24... Qb6 {[%clk 0:01:40.2]} 25. Be3 {[%clk 0:02:35.4]}
25... Qc6 {[%clk 0:01:37.9]} 26. b3 {[%clk 0:02:33.5]} 26... Qc3 {[%clk
0:01:36.3]} 27. Qd2 {[%clk 0:02:31.9]} 27... Qxd2 {[%clk 0:01:21.7]} 28. Rfxd2
{[%clk 0:02:30.7]} 28... Rfd8 {[%clk 0:01:21.2]} 29. Bg5 {[%clk 0:02:29.7]}
29... f6 {[%clk 0:01:20.8]} 30. Bxh4 {[%clk 0:02:29.8]} 30... Rc3 {[%clk
0:01:12.8]} 31. Kh2 {[%clk 0:02:20.3]} 31... Rdc8 {[%clk 0:01:12.6]} 32. Rxd6
{[%clk 0:02:16.9]} 32... Rxc2 {[%clk 0:01:12.2]} 33. Bg3 {[%clk 0:02:13.8]}
33... Rxd2 {[%clk 0:01:11.5]} 34. Rxd2 {[%clk 0:02:14.7]} 34... Rc3 {[%clk
0:01:10.5]} 35. g5 {[%clk 0:02:13.5]} 35... Rxb3 {[%clk 0:01:05.3]} 36. gxf6
{[%clk 0:02:13.4]} 36... gxf6 {[%clk 0:01:06.1]} 37. Bxe5 {[%clk 0:02:12.4]}
37... fxe5 {[%clk 0:01:07]} 38. Rd8+ {[%clk 0:02:12]} 38... Kf7 {[%clk
0:01:06.2]} 39. Rd7+ {[%clk 0:02:12.5]} 39... Ke6 {[%clk 0:01:06.4]} 40. Rxb7
{[%clk 0:02:13.4]} 40... Ra3 {[%clk 0:01:06.4]} 41. h4 {[%clk 0:02:13.6]} 41...
Kf6 {[%clk 0:01:04.8]} 42. Rb6+ {[%clk 0:02:11.3]} 42... Kg7 {[%clk 0:01:04.5]}
43. h5 {[%clk 0:02:11.6]} 43... Rxa4 {[%clk 0:01:04.8]} 44. h6+ {[%clk 0:02:12]}
44... Kh7 {[%clk 0:01:05.1]} 45. Bh3 {[%clk 0:02:12]} 1-0

[Event "*** Titled Tuesday Blitz"]
[Site "Chess.com"]
[Date "2020.12.01"]
[Round "5"]
[White "Rodalquilar"]
[Black "Kotofeyca"]
[Result "1-0"]
[WhiteElo "2693"]
[BlackElo "2471"]
[TimeControl "180+1"]
[EndTime "10:52:21 PST"]
[Termination "Rodalquilar won on time"]

1. d4 {[%clk 0:03:00.9]} 1... d5 {[%clk 0:02:59.4]} 2. Bf4 {[%clk 0:03:01.1]}
2... c6 {[%clk 0:02:59.6]} 3. e3 {[%clk 0:03:01.4]} 3... Qb6 {[%clk 0:02:59.2]}
4. Qc1 {[%clk 0:03:00.9]} 4... Bf5 {[%clk 0:02:59]} 5. Nf3 {[%clk 0:03:00.9]}
5... e6 {[%clk 0:02:59.1]} 6. Be2 {[%clk 0:03:00.1]} 6... Nf6 {[%clk 0:02:56.8]}
7. O-O {[%clk 0:02:59.6]} 7... Be7 {[%clk 0:02:54]} 8. c4 {[%clk 0:02:59.4]}
8... c5 {[%clk 0:02:51.7]} 9. Nc3 {[%clk 0:02:58.2]} 9... dxc4 {[%clk
0:02:48.5]} 10. Na4 {[%clk 0:02:54.3]} 10... Qa5 {[%clk 0:02:44.4]} 11. Nxc5
{[%clk 0:02:54.4]} 11... Bxc5 {[%clk 0:02:37.5]} 12. dxc5 {[%clk 0:02:50.8]}
12... Qxc5 {[%clk 0:02:25.4]} 13. Qxc4 {[%clk 0:02:51]} 13... Qxc4 {[%clk
0:02:24.6]} 14. Bxc4 {[%clk 0:02:51.9]} 14... O-O {[%clk 0:02:09.2]} 15. Nd4
{[%clk 0:02:45.5]} 15... Be4 {[%clk 0:02:05.2]} 16. f3 {[%clk 0:02:45.9]} 16...
Bd5 {[%clk 0:02:04.4]} 17. Be2 {[%clk 0:02:46.1]} 17... Nh5 {[%clk 0:01:47]} 18.
Bd6 {[%clk 0:02:43.7]} 18... Rd8 {[%clk 0:01:46.8]} 19. Ba3 {[%clk 0:02:43.6]}
19... Nc6 {[%clk 0:01:41.2]} 20. Nb5 {[%clk 0:02:43.6]} 20... Na5 {[%clk
0:01:16]} 21. b3 {[%clk 0:02:39.7]} 21... a6 {[%clk 0:01:03.5]} 22. Nd6 {[%clk
0:02:38.5]} 22... Nf6 {[%clk 0:00:43.8]} 23. Rfd1 {[%clk 0:02:37.2]} 23... Bc6
{[%clk 0:00:34.6]} 24. b4 {[%clk 0:02:13.6]} 24... Rxd6 {[%clk 0:00:19.6]} 25.
Rxd6 {[%clk 0:02:12.5]} 1-0

[Event "*** Titled Tuesday Blitz"]
[Site "Chess.com"]
[Date "2020.12.01"]
[Round "5"]
[White "Kaslask"]
[Black "Road2GM3000"]
[Result "1-0"]
[WhiteElo "2333"]
[BlackElo "2127"]
[TimeControl "180+1"]
[EndTime "10:52:41 PST"]
[Termination "Kaslask won by resignation"]

1. d4 {[%clk 0:03:00.9]} 1... d5 {[%clk 0:03:00]} 2. c4 {[%clk 0:03:00.5]} 2...
c6 {[%clk 0:03:00.4]} 3. Nc3 {[%clk 0:02:59.9]} 3... Nf6 {[%clk 0:03:00.6]} 4.
e3 {[%clk 0:03:00]} 4... e6 {[%clk 0:03:00.4]} 5. Nf3 {[%clk 0:02:57.2]} 5...
Bd6 {[%clk 0:03:00.8]} 6. Bd3 {[%clk 0:02:53.4]} 6... Nbd7 {[%clk 0:03:00.8]} 7.
O-O {[%clk 0:02:52.8]} 7... O-O {[%clk 0:02:59.8]} 8. e4 {[%clk 0:02:52]} 8...
dxe4 {[%clk 0:02:59.5]} 9. Nxe4 {[%clk 0:02:51.9]} 9... Nxe4 {[%clk 0:03:00]}
10. Bxe4 {[%clk 0:02:52]} 10... Nf6 {[%clk 0:02:54.6]} 11. Bc2 {[%clk
0:02:51.5]} 11... c5 {[%clk 0:02:53.4]} 12. Bg5 {[%clk 0:02:37.2]} 12... h6
{[%clk 0:02:45.2]} 13. Bh4 {[%clk 0:02:29.7]} 13... cxd4 {[%clk 0:02:37.6]} 14.
Qd3 {[%clk 0:02:27]} 14... g6 {[%clk 0:02:37.7]} 15. Rad1 {[%clk 0:02:04.2]}
15... Be7 {[%clk 0:02:28.7]} 16. Ne5 {[%clk 0:02:01.4]} 16... g5 {[%clk
0:01:25.9]} 17. Ng4 {[%clk 0:01:57.2]} 17... Re8 {[%clk 0:01:04.9]} 18. Nxh6+
{[%clk 0:01:56.3]} 18... Kg7 {[%clk 0:00:56.1]} 19. Nxf7 {[%clk 0:01:49.2]}
19... Kxf7 {[%clk 0:00:34.3]} 20. Qg6+ {[%clk 0:01:45.1]} 20... Kf8 {[%clk
0:00:34.3]} 21. Bxg5 {[%clk 0:01:45]} 21... Ng8 {[%clk 0:00:32.4]} 22. Bh6+
{[%clk 0:01:36.7]} 22... Nxh6 {[%clk 0:00:31.6]} 23. Qxh6+ {[%clk 0:01:36.3]}
23... Kg8 {[%clk 0:00:17.4]} 24. Qh7+ {[%clk 0:01:35]} 24... Kf8 {[%clk
0:00:16.7]} 25. Bg6 {[%clk 0:01:34.5]} 1-0

[Event "*** Titled Tuesday Blitz"]
[Site "Chess.com"]
[Date "2020.12.01"]
[Round "5"]
[White "Kildepiotr"]
[Black "vwnv7"]
[Result "1-0"]
[WhiteElo "2628"]
[BlackElo "2411"]
[TimeControl "180+1"]
[EndTime "10:52:43 PST"]
[Termination "Kildepiotr won by resignation"]

1. Nf3 {[%clk 0:03:00.9]} 1... d5 {[%clk 0:02:59.7]} 2. g3 {[%clk 0:03:00.1]}
2... c6 {[%clk 0:02:59.5]} 3. Bg2 {[%clk 0:03:00.6]} 3... Nf6 {[%clk 0:02:59.8]}
4. O-O {[%clk 0:03:01]} 4... Bg4 {[%clk 0:02:59.3]} 5. d3 {[%clk 0:03:01.9]}
5... Nbd7 {[%clk 0:02:58.7]} 6. Nbd2 {[%clk 0:03:02.1]} 6... e5 {[%clk
0:02:58.4]} 7. e4 {[%clk 0:03:02.3]} 7... dxe4 {[%clk 0:02:57.5]} 8. dxe4 {[%clk
0:03:02.1]} 8... Bc5 {[%clk 0:02:57.5]} 9. h3 {[%clk 0:03:02.2]} 9... Bh5 {[%clk
0:02:56]} 10. Qe1 {[%clk 0:03:02.2]} 10... O-O {[%clk 0:02:55.2]} 11. Nh4 {[%clk
0:03:02.2]} 11... Re8 {[%clk 0:02:44.6]} 12. Nf5 {[%clk 0:03:00.7]} 12... Bf8
{[%clk 0:02:33.3]} 13. Nb3 {[%clk 0:02:59.7]} 13... Nc5 {[%clk 0:02:10.6]} 14.
Nxc5 {[%clk 0:02:55.1]} 14... Bxc5 {[%clk 0:02:09.2]} 15. Be3 {[%clk 0:02:54.5]}
15... Bf8 {[%clk 0:02:00]} 16. Qc3 {[%clk 0:02:48.3]} 16... Qc7 {[%clk
0:01:47.4]} 17. g4 {[%clk 0:02:47]} 17... Bg6 {[%clk 0:01:46.4]} 18. Ng3 {[%clk
0:02:47.1]} 18... Nd7 {[%clk 0:01:42.5]} 19. Rfd1 {[%clk 0:02:45.9]} 19... a5
{[%clk 0:01:39]} 20. a3 {[%clk 0:02:45.7]} 20... f6 {[%clk 0:01:35.3]} 21. Bf1
{[%clk 0:02:44.9]} 21... Bf7 {[%clk 0:01:30.9]} 22. Bc4 {[%clk 0:02:44.5]} 22...
Bxc4 {[%clk 0:01:11.2]} 23. Qxc4+ {[%clk 0:02:45.4]} 23... Kh8 {[%clk
0:01:11.7]} 24. Nf5 {[%clk 0:02:41.2]} 24... Nb6 {[%clk 0:01:08.1]} 25. Qb3
{[%clk 0:02:40.8]} 25... Ra6 {[%clk 0:01:01.9]} 26. a4 {[%clk 0:02:34.8]} 26...
Nc8 {[%clk 0:01:00.7]} 27. Rd3 {[%clk 0:02:20.3]} 27... c5 {[%clk 0:00:58]} 28.
Qb5 {[%clk 0:02:13.3]} 28... Rc6 {[%clk 0:00:50.3]} 29. Rad1 {[%clk 0:02:10.3]}
29... Nd6 {[%clk 0:00:44.1]} 30. Nxd6 {[%clk 0:02:07.4]} 30... Bxd6 {[%clk
0:00:36.9]} 31. Rxd6 {[%clk 0:02:05.5]} 31... h5 {[%clk 0:00:23.6]} 32. Rxc6
{[%clk 0:01:55]} 32... bxc6 {[%clk 0:00:23.2]} 33. Qxc5 {[%clk 0:01:55]} 33...
hxg4 {[%clk 0:00:23.7]} 34. hxg4 {[%clk 0:01:54.8]} 34... Qc8 {[%clk 0:00:23.5]}
35. f3 {[%clk 0:01:53.5]} 1-0

[Event "*** Titled Tuesday Blitz"]
[Site "Chess.com"]
[Date "2020.12.01"]
[Round "5"]
[White "pastouche06"]
[Black "Ladislav1969"]
[Result "0-1"]
[WhiteElo "2495"]
[BlackElo "2358"]
[TimeControl "180+1"]
[EndTime "10:52:54 PST"]
[Termination "Ladislav1969 won by resignation"]

1. d4 {[%clk 0:03:00.9]} 1... Nf6 {[%clk 0:02:59.9]} 2. c4 {[%clk 0:02:59.4]}
2... g6 {[%clk 0:03:00.8]} 3. f3 {[%clk 0:02:59.6]} 3... d5 {[%clk 0:02:59.5]}
4. cxd5 {[%clk 0:02:59.4]} 4... Nxd5 {[%clk 0:03:00.2]} 5. e4 {[%clk 0:02:58.7]}
5... Nb6 {[%clk 0:02:59.2]} 6. Nc3 {[%clk 0:02:57.8]} 6... Bg7 {[%clk
0:02:56.6]} 7. Be3 {[%clk 0:02:57.8]} 7... Nc6 {[%clk 0:02:55.3]} 8. d5 {[%clk
0:02:57.2]} 8... Ne5 {[%clk 0:02:54.5]} 9. f4 {[%clk 0:02:48.1]} 9... Ng4 {[%clk
0:02:50.9]} 10. Bd4 {[%clk 0:02:45.9]} 10... e5 {[%clk 0:02:50.3]} 11. Bxb6
{[%clk 0:02:08.9]} 11... axb6 {[%clk 0:02:44.6]} 12. Bb5+ {[%clk 0:01:55.1]}
12... Kf8 {[%clk 0:02:16.6]} 13. f5 {[%clk 0:01:46]} 13... Qg5 {[%clk
0:02:10.9]} 14. Nf3 {[%clk 0:01:31.9]} 14... Qe3+ {[%clk 0:02:10.8]} 15. Qe2
{[%clk 0:01:32]} 15... gxf5 {[%clk 0:02:08.4]} 16. exf5 {[%clk 0:01:24.4]} 16...
Bxf5 {[%clk 0:02:04.1]} 17. h3 {[%clk 0:01:21.5]} 17... Qxe2+ {[%clk 0:01:59.7]}
18. Kxe2 {[%clk 0:01:22.4]} 18... Nf6 {[%clk 0:01:51.1]} 19. Rhf1 {[%clk
0:01:20.7]} 19... Ne4 {[%clk 0:01:43.5]} 20. Nxe4 {[%clk 0:01:08.6]} 20... Bxe4
{[%clk 0:01:43.1]} 21. Rad1 {[%clk 0:01:02.3]} 21... Rxa2 {[%clk 0:01:42.5]} 22.
Ng5 {[%clk 0:00:56.1]} 22... Rxb2+ {[%clk 0:01:42.3]} 23. Ke3 {[%clk 0:00:56.5]}
23... Bg6 {[%clk 0:01:33]} 24. Ne6+ {[%clk 0:00:52.9]} 24... Ke7 {[%clk
0:01:26.4]} 25. Nxg7 {[%clk 0:00:46.6]} 25... Rxb5 {[%clk 0:01:26]} 26. Rc1
{[%clk 0:00:46.3]} 26... Rc5 {[%clk 0:01:24.1]} 27. g4 {[%clk 0:00:35.7]} 27...
Rd8 {[%clk 0:01:16.8]} 0-1

[Event "*** Titled Tuesday Blitz"]
[Site "Chess.com"]
[Date "2020.12.01"]
[Round "5"]
[White "AliKa2810"]
[Black "dpopadic"]
[Result "1-0"]
[WhiteElo "2580"]
[BlackElo "2397"]
[TimeControl "180+1"]
[EndTime "10:52:59 PST"]
[Termination "AliKa2810 won by resignation"]

1. d4 {[%clk 0:03:00.9]} 1... Nf6 {[%clk 0:02:59.2]} 2. c4 {[%clk 0:03:01.4]}
2... g6 {[%clk 0:02:59]} 3. Nc3 {[%clk 0:03:00.9]} 3... Bg7 {[%clk 0:02:59.5]}
4. e4 {[%clk 0:03:01.1]} 4... d6 {[%clk 0:03:00.4]} 5. f4 {[%clk 0:03:01.4]}
5... O-O {[%clk 0:03:00.6]} 6. Nf3 {[%clk 0:03:01]} 6... c5 {[%clk 0:03:00.7]}
7. d5 {[%clk 0:03:00.8]} 7... e6 {[%clk 0:03:00.7]} 8. Be2 {[%clk 0:03:00.8]}
8... exd5 {[%clk 0:03:00.6]} 9. cxd5 {[%clk 0:03:01.7]} 9... Bg4 {[%clk
0:02:58.7]} 10. O-O {[%clk 0:03:00.6]} 10... a6 {[%clk 0:02:58.3]} 11. a4 {[%clk
0:03:00.3]} 11... Nbd7 {[%clk 0:02:58.1]} 12. h3 {[%clk 0:02:59.9]} 12... Bxf3
{[%clk 0:02:57.4]} 13. Bxf3 {[%clk 0:03:00.8]} 13... Qc7 {[%clk 0:02:54.2]} 14.
Be3 {[%clk 0:02:51.2]} 14... c4 {[%clk 0:02:53.8]} 15. g4 {[%clk 0:02:16.3]}
15... Nc5 {[%clk 0:02:49]} 16. g5 {[%clk 0:02:15.2]} 16... Nfd7 {[%clk
0:02:47.3]} 17. Qe2 {[%clk 0:01:59.9]} 17... Nb3 {[%clk 0:02:45.9]} 18. Rad1
{[%clk 0:01:57.9]} 18... Rfe8 {[%clk 0:02:45.4]} 19. Qg2 {[%clk 0:01:51.6]}
19... Rab8 {[%clk 0:02:41.7]} 20. h4 {[%clk 0:01:48.9]} 20... b5 {[%clk
0:02:37.8]} 21. axb5 {[%clk 0:01:49.8]} 21... axb5 {[%clk 0:02:37.7]} 22. e5
{[%clk 0:01:41.4]} 22... Ndc5 {[%clk 0:02:30.4]} 23. Ne4 {[%clk 0:01:28.8]}
23... Nxe4 {[%clk 0:02:19]} 24. Bxe4 {[%clk 0:01:29.7]} 24... dxe5 {[%clk
0:02:14.9]} 25. d6 {[%clk 0:01:29]} 25... Qd8 {[%clk 0:02:10.7]} 26. f5 {[%clk
0:01:22.3]} 26... Nd4 {[%clk 0:02:01.6]} 27. fxg6 {[%clk 0:01:01.1]} 27... hxg6
{[%clk 0:02:01.1]} 28. Bd5 {[%clk 0:00:58]} 28... Rf8 {[%clk 0:01:56]} 29. h5
{[%clk 0:00:53]} 29... gxh5 {[%clk 0:01:54.9]} 30. g6 {[%clk 0:00:52.7]} 30...
Qxd6 {[%clk 0:01:40.7]} 31. Bxf7+ {[%clk 0:00:52.4]} 31... Kh8 {[%clk
0:01:27.4]} 32. Qh3 {[%clk 0:00:51]} 32... Rxf7 {[%clk 0:01:18.7]} 33. Qxh5+
{[%clk 0:00:46.4]} 33... Kg8 {[%clk 0:01:18.2]} 34. Qh7+ {[%clk 0:00:45]} 34...
Kf8 {[%clk 0:01:17.8]} 35. Rxf7+ {[%clk 0:00:45.5]} 1-0